Workbook

Sheet Summary
B4: Allowable Investment by Customer Class
B7: RESIDENTIAL (SCHEDULE 1-2)
D8: Terminal
C9: Distribution | D9: Facilities | E9: Total
B10: Allowable Investment per Customer | C10: ='Sch 001-002'!C32 -> 1250 | D10: ='Sch 001-002'!D32 -> 610 | E10: =SUM(C10:D10) -> 1860
B11: GENERAL SERVICE (SCHEDULE 11-12)*
D12: Terminal
C13: Distribution | D13: Facilities | E13: Total
B14: Allowable Investment per kWh | C14: ='Sch 011-012'!C28 -> 0.1078297191 | D14: ='Sch 011-012'!D28 -> 0.04224504281 | E14: ='Sch 011-012'!E28 -> 0.1500747619
B15: LARGE GENERAL SERVICE (SCHEDULE 21-22)*
D16: Terminal
C17: Distribution | D17: Facilities | E17: Total
B18: Allowable Investment per kWh | C18: ='Sch 021-022'!C28 -> 0.1022503045 | D18: ='Sch 021-022'!D28 -> 0.02403016491 | E18: =SUM(C18:D18) -> 0.1262804694
B19: PUMPING SERVICE (SCHEDULE 31)
D20: Terminal
C21: Distribution | D21: Facilities | E21: Total
B22: Allowable Investment per kWh | C22: ='Sch 031-032'!C28 -> 0.1227705706 | D22: ='Sch 031-032'!D28 -> 0.03673974837 | E22: =SUM(C22:D22) -> 0.159510319
B26: * Schedules 12 and 22 are for customers who meet the requirements for service under Schedules 11 and 21 and whose electric use qualifies as "residential load" as defined in the Pacific Northwest Electric Power Planning and Conservation Act and the Residential Purchase and Sale Agreement contract in effect between Avista and the Bonneville Power Administration. Tariffed rates are the same under Schedules 11 and 12 and under Schedules 21 and 22.

Sheet Sch 001-002
B1: Calculation of Allowance - Schedule 51
B2: Schedule 001
B5: Summary
B6: Residential (Schedule 1)
B8: # Customers | C8: =Inputs!C37 -> 209864
B9: Rate of Return | C9: =Inputs!D24 -> 0.09042732614
C11: Distribution | D11: Terminal
B12: 2015 Cost of Service Study | C12: Plant | D12: Facilities | E12: Total
B13: Net Plant | C13: =Inputs!C93 -> 234913585.5 | D13: =Inputs!C98 -> 121823757.1 | E13: =SUM(C13:D13) -> 356737342.6
B15: Return on Net Plant | C15: =C13*C9 -> 21242607.41 | D15: =D13*C9 -> 11016196.62 | E15: =SUM(C15:D15) -> 32258804.03
B16: Depreciation Expense | C16: =Inputs!C113 -> 10271434.47 | D16: =Inputs!C118 -> 4410414 | E16: =SUM(C16:D16) -> 14681848.47
B17: Total | C17: =SUM(C15:C16) -> 31514041.87 | D17: =SUM(D15:D16) -> 15426610.62 | E17: =SUM(E15:E16) -> 46940652.49
C20: Distribution | D20: Terminal
B21: Per Customer Expenses | C21: Plant | D21: Facilities | E21: Total
B22: Net Plant | C22: =(C13/C8) -> 1119.361041 | D22: =D13/C8 -> 580.489065 | E22: =SUM(C22:D22) -> 1699.850106
B24: Return on Net Plant | C24: =C15/C8 -> 101.2208259 | D24: =D15/C8 -> 52.49207401 | E24: =SUM(C24:D24) -> 153.7128999
B25: Depreciation Expense | C25: =C16/C8 -> 48.9432893 | D25: =D16/C8 -> 21.01558152 | E25: =SUM(C25:D25) -> 69.95887082
B26: Total | C26: =SUM(C24:C25) -> 150.1641152 | D26: =SUM(D24:D25) -> 73.50765552 | E26: =SUM(E24:E25) -> 223.6717707
B28: Allowable Investment | C28: =C26/(Inputs!H142+C9) -> 1249.163249 | D28: =D26/(Inputs!H142+C9) -> 611.4847188 | E28: =SUM(C28:D28) -> 1860.647967
B30: Rounded to nearest $5 increment | C30: =C32-C28 -> 0.8367514324 | D30: =D32-D28 -> -1.484718846 | E30: =C30+D30 -> -0.6479674138
B32: Allowable Investment | C32: =MROUND(C28,5) -> 1250 | D32: =MROUND(D28,5) -> 610 | E32: =SUM(C32:D32) -> 1860
B38: Apartments
B39: Current Schedule 1 Allowance | C39: 1695 | D39: Present Schedule 51
B40: Current Duplex Allowance | C40: 1355 | D40: Present Schedule 51
B41: Current Multiplex Allowance | C41: 1015 | D41: Present Schedule 51
B42: Ratio of Duplex to Residence | C42: =C40/C39 -> 0.7994100295 | D42: C40/C39
B43: New Duplex Allowance | C43: =MROUND(C42*E32,5) -> 1485 | D43: E32*C42
B44: Ratio of Multiplex to Residence | C44: =C41/C39 -> 0.598820059 | D44: C41/C39
B45: New Multiplex Allowance | C45: =MROUND(C44*E32,5) -> 1115 | D45: E32*C44
B47: Small Schedule 011 Allowance
B48: Sch 011 Under 75,000 kWh's | C48: 1300
B49: Ratio of Small Sch 011 to Sch 1 Allowance | C49: =C48/C39 -> 0.7669616519 | D49: C48/C39
B50: New Small Sch 011 Allowance | C50: =(C49*E32) -> 1426.548673 | D50: C49*E32

Sheet Sch 011-012
B1: Calculation of Allowance - Schedule 51
B2: Schedule 011/012
B6: Residential (Schedule 11/12)
B8: Annual MWhs | C8: =Inputs!D38 -> 623244
B9: Rate of Return | C9: =Inputs!D24 -> 0.09042732614
C11: Distribution | D11: Terminal
B12: ='Sch 001-002'!B12 -> 2015 Cost of Service Study | C12: Plant | D12: Facilities | E12: Total
B13: Net Plant | C13: =Inputs!D93 -> 60220941.87 | D13: =Inputs!D98 -> 25376574.87 | E13: =SUM(C13:D13) -> 85597516.74
B15: Return on Net Plant | C15: =C13*C9 -> 5445618.751 | D15: =D13*C9 -> 2294735.812 | E15: =SUM(C15:D15) -> 7740354.563
B16: Depreciation Expense | C16: =Inputs!D113 -> 2633119.607 | D16: =Inputs!D118 -> 870316 | E16: =SUM(C16:D16) -> 3503435.607
B17: Total | C17: =SUM(C15:C16) -> 8078738.357 | D17: =SUM(D15:D16) -> 3165051.812 | E17: =SUM(E15:E16) -> 11243790.17
C20: Distribution | D20: Terminal
B21: Per Customer Expenses | C21: Plant | D21: Facilities | E21: Total
B22: Net Plant | C22: =C13/C8/1000 -> 0.09662498454 | D22: =D13/C8/1000 -> 0.04071691805 | E22: =SUM(C22:D22) -> 0.1373419026
B24: Return on Net Plant | C24: =C15/C8/1000 -> 0.008737538991 | D24: =D15/C8/1000 -> 0.003681922028 | E24: =SUM(C24:D24) -> 0.01241946102
B25: Depreciation Expense | C25: =C16/C8/1000 -> 0.004224861542 | D25: =D16/C8/1000 -> 0.001396429007 | E25: =SUM(C25:D25) -> 0.005621290549
B26: Total | C26: =SUM(C24:C25) -> 0.01296240053 | D26: =SUM(D24:D25) -> 0.005078351035 | E26: 0.01804075157
B28: Allowable Investment | C28: =C26/(Inputs!H142+C9) -> 0.1078297191 | D28: =D26/(Inputs!H142+C9) -> 0.04224504281 | E28: =SUM(C28:D28) -> 0.1500747619

Sheet Sch 021-022
B1: Calculation of Allowance - Schedule 51
B2: Schedule 021/022
B6: Residential (Schedule 21/22)
B8: Annual MWhs | C8: =Inputs!E38 -> 1409459
B9: Rate of Return | C9: =Inputs!D24 -> 0.09042732614
C11: Distribution | D11: Terminal
B12: ='Sch 001-002'!B12 -> 2015 Cost of Service Study | C12: Plant | D12: Facilities | E12: Total
B13: Net Plant | C13: =Inputs!E93 -> 129306929.7 | D13: =Inputs!E98 -> 33890619.99 | E13: =SUM(C13:D13) -> 163197549.7
B15: Return on Net Plant | C15: =C13*C9 -> 11692879.91 | D15: =D13*C9 -> 3064638.147 | E15: =SUM(C15:D15) -> 14757518.05
B16: Depreciation Expense | C16: =Inputs!E113 -> 5631752.163 | D16: =Inputs!E118 -> 1006878 | E16: =SUM(C16:D16) -> 6638630.163
B17: Total | C17: =SUM(C15:C16) -> 17324632.07 | D17: =SUM(D15:D16) -> 4071516.147 | E17: =SUM(E15:E16) -> 21396148.22
C20: Distribution | D20: Terminal
B21: Per Customer Expenses | C21: Plant | D21: Facilities | E21: Total
B22: Net Plant | C22: =C13/C8/1000 -> 0.09174224274 | D22: =D13/C8/1000 -> 0.02404512653 | E22: =SUM(C22:D22) -> 0.1157873693
B24: Return on Net Plant | C24: =C15/C8/1000 -> 0.008296005705 | D24: =D15/C8/1000 -> 0.002174336499 | E24: =SUM(C24:D24) -> 0.0104703422
B25: Depreciation Expense | C25: =C16/C8/1000 -> 0.003995683566 | D25: =D16/C8/1000 -> 0.0007143719683 | E25: =SUM(C25:D25) -> 0.004710055534
B26: Total | C26: =SUM(C24:C25) -> 0.01229168927 | D26: =SUM(D24:D25) -> 0.002888708467 | E26: 0.01518039774
B28: Allowable Investment | C28: =C26/(Inputs!H142+C9) -> 0.1022503045 | D28: =D26/(Inputs!H142+C9) -> 0.02403016491 | E28: =SUM(C28:D28) -> 0.1262804694

Sheet Sch 031-032
B1: Calculation of Allowance - Schedule 51
B2: Schedule 031/032
B6: Residential (Schedule 31/32)
B8: Annual MWhs | C8: =Inputs!F38 -> 133495
B9: Rate of Return | C9: =Inputs!D24 -> 0.09042732614
C11: Distribution | D11: Terminal
B12: ='Sch 001-002'!B12 -> 2015 Cost of Service Study | C12: Plant | D12: Facilities | E12: Total
B13: Net Plant | C13: =Inputs!F93 -> 14686230.97 | D13: =Inputs!F98 -> 4837401.99 | E13: =SUM(C13:D13) -> 19523632.96
B15: Return on Net Plant | C15: =C13*C9 -> 1328036.597 | D15: =D13*C9 -> 437433.3274 | E15: =SUM(C15:D15) -> 1765469.925
B16: Depreciation Expense | C16: =Inputs!F113 -> 642144.9041 | D16: =Inputs!F118 -> 152154 | E16: =SUM(C16:D16) -> 794298.9041
B17: Total | C17: =SUM(C15:C16) -> 1970181.502 | D17: =SUM(D15:D16) -> 589587.3274 | E17: =SUM(E15:E16) -> 2559768.829
C20: Distribution | D20: Terminal
B21: Per Customer Expenses | C21: Plant | D21: Facilities | E21: Total
B22: Net Plant | C22: =C13/C8/1000 -> 0.1100133411 | D22: =D13/C8/1000 -> 0.03623657807 | E22: =SUM(C22:D22) -> 0.1462499192
B24: Return on Net Plant | C24: =C15/C8/1000 -> 0.009948212274 | D24: =D15/C8/1000 -> 0.003276776864 | E24: =SUM(C24:D24) -> 0.01322498914
B25: Depreciation Expense | C25: =C16/C8/1000 -> 0.004810254347 | D25: =D16/C8/1000 -> 0.001139773025 | E25: =SUM(C25:D25) -> 0.005950027372
B26: Total | C26: =SUM(C24:C25) -> 0.01475846662 | D26: =SUM(D24:D25) -> 0.004416549889 | E26: 0.01917501651
B28: Allowable Investment | C28: =C26/(Inputs!H142+C9) -> 0.1227705706 | D28: =D26/(Inputs!H142+C9) -> 0.03673974837 | E28: =SUM(C28:D28) -> 0.159510319

Sheet Inputs
A5: *From UE-170485
A7: Cost of Capital | E7: Source
A8: Capital | B8: Capital | C8: Component | D8: Weighted
A9: Component | B9: Structure | C9: Cost | D9: Cost
A10: Long Term Debt | B10: 0.486 | C10: 0.0576 | D10: =B10*C10 -> 0.0279936 | E10: UE-170485, Order 7, Pg 40
A11: Short Term Debt | B11: 0.029 | C11: 0.0326 | D11: =B11*C11 -> 0.0009454 | E11: UE-170485, Order 7, Pg 40
A12: Common Equity | B12: 0.485 | C12: 0.095 | D12: 0.046075 | E12: UE-170485, Order 7, Pg 40
A13: Total | B13: =SUM(B10:B12) -> 1 | D13: =SUM(D10:D12) -> 0.075014 | E13: UE-170485, Order 7, Pg 40
A16: Grossed-up Rate of Return
A18: Tax Gross-up Factor | D18: =1/CF!E24 -> 1.32780083 | E18: Adjusted for Tax Reform
A21: Weighted ROE * Tax Gross-up | C21: 1.328 * 4.608% | D21: =D18*D12 -> 0.06117842324
A22: Long Term and Short Term Debt | D22: =D10 -> 0.0279936
A23: Preferred Equity * Tax Gross-up | C23: 1.328 * 0.000% | D23: =D11*D18 -> 0.001255302905
A24: Grossed-up Rate of Return | D24: =SUM(D21:D23) -> 0.09042732614
A33: *From UE-170485 Cost of Service (Knox) | L33: *From UE-170485 Cost of Service (Knox)
L34: Allocations to Rate Schedules
B36: Total | C36: Schedule 001 | D36: Schedule 011/012 | E36: Schedule 021/022 | F36: Schedule 031/032 | G36: Source | K36: Allocator
A37: Number of Customers | B37: =SUM(C37:F37) -> 245486 | C37: 209864 | D37: 31286 | E37: 1903 | F37: 2433 | G37: Knox COS Study - "Assign" (columns BB - BL) | K37: C01
A38: Annual Consumption (MWhs) | B38: =SUM(C38:F38) -> 4528084 | C38: 2361886 | D38: 623244 | E38: 1409459 | F38: 133495 | G38: Knox COS Study - "Assign" (columns BB - BL) | K38: E01
A39: NCP Demand (kW) | B39: 844928 | C39: 451201 | D39: 115667 | E39: 249852 | F39: 28208 | G39: Knox COS Study - "Assign" (columns BB - BL) | K39: D02
B43: Plant in Service | I43: Final ProForma | L43: Plant in Service
A44: Account | I44: Cost of Service Balances | K44: Account
C45: Schedule 001 | D45: Schedule 011/012 | E45: Schedule 021/022 | F45: Schedule 031/032 | I45: From UE-170485 | M45: Total | N45: Schedule 001 | O45: Schedule 011/012 | P45: Schedule 021/022 | Q45: Schedule 031/032 | R45: Schedule 25 | S45: Sch 41-49
A46: 361 | B46: Structures & Improvements | C46: =$I46*($N46/$M46) -> 7138426.481 | D46: =$I46*($O46/$M46) -> 1829961.123 | E46: =$I46*($P46/$M46) -> 3952894.266 | F46: =$I46*($Q46/$M46) -> 446277.0301 | I46: 14851000 | K46: 361 | L46: Structures & Improvements | M46: =SUM(N46:S46) -> 14850999 | N46: 7138426 | O46: 1829961 | P46: 3952894 | Q46: 446277 | R46: 1392629 | S46: 90812 | U46: Knox COS Study - "Assign" (J946 - W1089)
A47: 362 | B47: Station Equipment | C47: =$I47*($N47/$M47) -> 41379995.5 | D47: =$I47*($O47/$M47) -> 10607910.87 | E47: =$I47*($P47/$M47) -> 22914121.72 | F47: =$I47*($Q47/$M47) -> 2586977.969 | I47: 83107000 | K47: 362 | L47: Station Equipment | M47: =SUM(N47:S47) -> 83107001 | N47: 41379996 | O47: 10607911 | P47: 22914122 | Q47: 2586978 | R47: 5091574 | S47: 526420
A48: 363 | B48: Storage Battery Equipment | C48: 1256574.522 | D48: 322126.8776 | E48: 695826.7355 | F48: 78557.97014 | I48: 2631000 | K48: 363 | L48: Storage Battery Equipment | M48: =SUM(N48:S48) -> 2631001 | N48: 1256575 | O48: 322127 | P48: 695827 | Q48: 78558 | R48: 261928 | S48: 15986
A49: 364 | B49: Poles, Towers & Fixtures | C49: 112840283.5 | D49: 28927012.88 | E49: 62429734.73 | F49: 7054502.97 | I49: 233645000 | K49: 364 | L49: Poles, Towers & Fixtures | M49: 233645001 | N49: 112840284 | O49: 28927013 | P49: 62429735 | Q49: 7054503 | R49: 9228978 | S49: 13164488
A50: 365 | B50: OH Conductors & Devices | C50: 75265044 | D50: 19294465 | E50: 41658499 | F50: 4705389 | I50: 148163000 | K50: 365 | L50: OH Conductors & Devices | M50: 148163000 | N50: 75265044 | O50: 19294465 | P50: 41658499 | Q50: 4705389 | R50: 6282111 | S50: 957492
A51: 366 | B51: UG Conduit | C51: =$I51*($N51/$M51) -> 34737002.51 | D51: 8904955.132 | E51: 18775543.28 | F51: 2171674.032 | I51: 67628000 | K51: 366 | L51: UG Conduit | M51: 67627999 | N51: 34737002 | O51: 8904955 | P51: 18775543 | Q51: 2171674 | R51: 2596915 | S51: 441910
A52: 367 | B52: UG Conductors & Devices | C52: 62375794.49 | D52: 15990259.87 | E52: 33817052.72 | F52: 3899584.968 | I52: 122166000 | K52: 367 | L52: UG Conductors & Devices | M52: 122166001 | N52: 62375795 | O52: 15990260 | P52: 33817053 | Q52: 3899585 | R52: 5289788 | S52: 793520
B53: Subtotals | C53: =SUM(C46:C52) -> 334993121 | D53: =SUM(D46:D52) -> 85876691.75 | E53: 184243672.5 | F53: 20942963.94 | I53: =SUM(I46:I52) -> 672191000 | L53: Subtotals | M53: =SUM(N53:S53) -> 672191002 | N53: =SUM(N46:N52) -> 334993122 | O53: =SUM(O46:O52) -> 85876692 | P53: 184243673 | Q53: 20942964 | R53: =SUM(R46:R52) -> 30143923 | S53: 15990628
A55: 368 | B55: Line Transformers | C55: =$I55*($N55/$M55) -> 92283009 | D55: =$I55*($O55/$M55) -> 23657081 | E55: =$I55*($P55/$M55) -> 45834611 | F55: =$I55*($Q55/$M55) -> 5769311 | I55: 168718000 | K55: 368 | L55: Line Transformers | M55: =SUM(N55:S55) -> 168718000 | N55: 92283009 | O55: 23657081 | P55: 45834611 | Q55: 5769311 | R55: 0 | S55: 1173988
A56: 369 | B56: Services | C56: =$I56*($N56/$M56) -> 88621902.14 | D56: =$I56*($O56/$M56) -> 13211656.87 | E56: =$I56*($P56/$M56) -> 787133.9924 | F56: =$I56*($Q56/$M56) -> 1027306.99 | I56: 103648000 | K56: 369 | L56: Services | M56: =SUM(N56:S56) -> 103648001 | N56: 88621903 | O56: 13211657 | P56: 787134 | Q56: 1027307 | R56: 0 | S56: 0
A57: 370 | B57: Meters | C57: 0 | D57: 0 | E57: 0 | F57: 0 | I57: 0 | K57: 370 | L57: Meters | M57: 0 | N57: 0 | O57: 0 | P57: 0 | Q57: 0 | R57: 0 | S57: 0
B58: Subtotals | C58: =SUM(C55:C57) -> 180904911.1 | D58: =SUM(D55:D57) -> 36868737.87 | E58: 46621744.99 | F58: 6796617.99 | I58: =SUM(I55:I57) -> 272366000 | L58: Subtotals | M58: 272366001 | N58: =SUM(N55:N57) -> 180904912 | O58: =SUM(O55:O57) -> 36868738 | P58: 46621745 | Q58: 6796618 | R58: =SUM(R55:R57) -> 0 | S58: 1173988
B60: Totals | C60: =C53+C58 -> 515898032.2 | D60: =D53+D58 -> 122745429.6 | E60: 230865417.5 | F60: 27739581.93 | L60: Totals | M60: =SUM(N60:S60) -> 944557003 | N60: =N53+N58 -> 515898034 | O60: =O53+O58 -> 122745430 | P60: 230865418 | Q60: 27739582 | R60: =R53+R58 -> 30143923 | S60: 17164616
B63: Accumulated Depreciation | L63: Accumulated Depreciation
A64: Account | K64: Account
C65: Schedule 001 | D65: Schedule 011/012 | E65: Schedule 021/022 | F65: Schedule 031/032 | N65: Schedule 001 | O65: Schedule 011/012 | P65: Schedule 021/022 | Q65: Schedule 031/032 | R65: Schedule 25 | S65: Sch 41-49
A66: 361 | B66: Structures & Improvements | C66: =$I66*($N66/$M66) -> 2155323 | D66: =$I66*($O66/$M66) -> 552525 | E66: =$I66*($P66/$M66) -> 1193507 | F66: =$I66*($Q66/$M66) -> 134746 | I66: 4484000 | K66: 361 | L66: Structures & Improvements | M66: =SUM(N66:S66) -> 4484000 | N66: 2155323 | O66: 552525 | P66: 1193507 | Q66: 134746 | R66: 420480 | S66: 27419 | U66: Knox COS Study - "Assign" (J1221 - W1364)
A67: 362 | B67: Station Equipment | C67: =$I67*($N67/$M67) -> 11543100 | D67: =$I67*($O67/$M67) -> 2959115 | E67: =$I67*($P67/$M67) -> 6391978 | F67: =$I67*($Q67/$M67) -> 721647 | I67: 23183000 | K67: 362 | L67: Station Equipment | M67: =SUM(N67:S67) -> 23183000 | N67: 11543100 | O67: 2959115 | P67: 6391978 | Q67: 721647 | R67: 1420313 | S67: 146847
A68: 363 | B68: Storage Battery Equipment | C68: 102684.5224 | D68: 26323.87756 | E68: 56861.73553 | F68: 6419.97014 | I68: 215000 | K68: 363 | L68: Storage Battery Equipment | M68: =SUM(N68:S68) -> 215001 | N68: 102685 | O68: 26324 | P68: 56862 | Q68: 6420 | R68: 21404 | S68: 1306
A69: 364 | B69: Poles, Towers & Fixtures | C69: 26560171.52 | D69: 6808795.876 | E69: 14694614.73 | F69: 1660477.97 | I69: 54995000 | K69: 364 | L69: Poles, Towers & Fixtures | M69: 54995001 | N69: 26560172 | O69: 6808796 | P69: 14694615 | Q69: 1660478 | R69: 2172303 | S69: 3098637
A70: 365 | B70: OH Conductors & Devices | C70: 21142973.51 | D70: 5420077.13 | E70: 11702438.28 | F70: 1321808.032 | I70: 41621000 | K70: 365 | L70: OH Conductors & Devices | M70: 41620999 | N70: 21142973 | O70: 5420077 | P70: 11702438 | Q70: 1321808 | R70: 1764730 | S70: 268973
A71: 366 | B71: UG Conduit | C71: 9884133 | D71: 2533833 | E71: 5342429 | F71: 617932 | I71: 19243000 | K71: 366 | L71: UG Conduit | M71: 19243000 | N71: 9884133 | O71: 2533833 | P71: 5342429 | Q71: 617932 | R71: 738931 | S71: 125742
A72: 367 | B72: UG Conductors & Devices | C72: 28691150 | D72: 7355080 | E72: 15554914 | F72: 1793702 | I72: 56193000 | K72: 367 | L72: UG Conductors & Devices | M72: 56193000 | N72: 28691150 | O72: 7355080 | P72: 15554914 | Q72: 1793702 | R72: 2433157 | S72: 364997
B73: Subtotals | C73: =SUM(C66:C72) -> 100079535.5 | D73: =SUM(D66:D72) -> 25655749.88 | E73: =SUM(E66:E72) -> 54936742.75 | F73: =SUM(F66:F72) -> 6256732.972 | I73: =SUM(I66:I72) -> 199934000 | L73: Subtotals | M73: 199934001 | N73: =SUM(N66:N72) -> 100079536 | O73: =SUM(O66:O72) -> 25655750 | P73: 54936743 | Q73: 6256733 | R73: =SUM(R66:R72) -> 8971318 | S73: 4033921
A75: 368 | B75: Line Transformers | C75: =$I75*($N75/$M75) -> 25023694 | D75: =$I75*($O75/$M75) -> 6414914 | E75: =$I75*($P75/$M75) -> 12428629 | F75: =$I75*($Q75/$M75) -> 1564421 | I75: 45750000 | K75: 368 | L75: Line Transformers | M75: =SUM(N75:S75) -> 45750000 | N75: 25023694 | O75: 6414914 | P75: 12428629 | Q75: 1564421 | R75: 0 | S75: 318342
A76: 369 | B76: Services | C76: =$I76*($N76/$M76) -> 34057460 | D76: =$I76*($O76/$M76) -> 5077249 | E76: =$I76*($P76/$M76) -> 302496 | F76: =$I76*($Q76/$M76) -> 394795 | I76: 39832000 | K76: 369 | L76: Services | M76: =SUM(N76:S76) -> 39832000 | N76: 34057460 | O76: 5077249 | P76: 302496 | Q76: 394795 | R76: 0 | S76: 0
A77: 370 | B77: Meters | C77: 0 | D77: 0 | E77: 0 | F77: 0 | I77: 0 | K77: 370 | L77: Meters | M77: 0 | N77: 0 | O77: 0 | P77: 0 | Q77: 0 | R77: 0 | S77: 0
B78: Subtotals | C78: =SUM(C75:C77) -> 59081154 | D78: =SUM(D75:D77) -> 11492163 | E78: =SUM(E75:E77) -> 12731125 | F78: =SUM(F75:F77) -> 1959216 | I78: =SUM(I75:I77) -> 85582000 | L78: Subtotals | M78: =SUM(N78:S78) -> 85582000 | N78: =SUM(N75:N77) -> 59081154 | O78: =SUM(O75:O77) -> 11492163 | P78: 12731125 | Q78: 1959216 | R78: =SUM(R75:R77) -> 0 | S78: 318342
B80: Totals | C80: =C73+C78 -> 159160689.5 | D80: =D73+D78 -> 37147912.88 | E80: 67667867.75 | F80: 8215948.972 | L80: Totals | M80: =M73+M78 -> 285516001 | N80: =N73+N78 -> 159160690 | O80: =O73+O78 -> 37147913 | P80: 67667868 | Q80: 8215949 | R80: =R73+R78 -> 8971318 | S80: 4352263
B83: Net Plant | L83: Net Plant
A84: Account | K84: Account
C85: Schedule 001 | D85: Schedule 011/012 | E85: Schedule 021/022 | F85: Schedule 031/032 | N85: Schedule 001 | O85: Schedule 011/012 | P85: Schedule 021/022 | Q85: Schedule 031/032 | R85: Schedule 25 | S85: Sch 41-49
A86: 361 | B86: Structures & Improvements | C86: =C46-C66 -> 4983103.481 | D86: =D46-D66 -> 1277436.123 | E86: 2759387.266 | F86: 311531.0301 | K86: 361 | L86: Structures & Improvements | M86: =M46-M66 -> 10366999 | N86: =N46-N66 -> 4983103 | O86: =O46-O66 -> 1277436 | P86: 2759387 | Q86: 311531 | R86: =R46-R66 -> 972149 | S86: 63393
A87: 362 | B87: Station Equipment | C87: 29836895.5 | D87: =D47-D67 -> 7648795.872 | E87: 16522143.72 | F87: 1865330.969 | K87: 362 | L87: Station Equipment | M87: =M47-M67 -> 59924001 | N87: =N47-N67 -> 29836896 | O87: 7648796 | P87: 16522144 | Q87: 1865331 | R87: =R47-R67 -> 3671261 | S87: 379573
A88: 363 | B88: Storage Battery Equipment | C88: 1153890 | D88: 295803 | E88: 638965 | F88: 72138 | K88: 363 | L88: Storage Battery Equipment | M88: 2416000 | N88: 1153890 | O88: 295803 | P88: 638965 | Q88: 72138 | R88: 240524 | S88: 14680
A89: 364 | B89: Poles, Towers & Fixtures | C89: 86280112 | D89: 22118217 | E89: 47735120 | F89: 5394025 | K89: 364 | L89: Poles, Towers & Fixtures | M89: 178650000 | N89: =N49-N69 -> 86280112 | O89: 22118217 | P89: 47735120 | Q89: 5394025 | R89: =R49-R69 -> 7056675 | S89: 10065851
A90: 365 | B90: OH Conductors & Devices | C90: 54122070.49 | D90: 13874387.87 | E90: 29956060.72 | F90: 3383580.968 | K90: 365 | L90: OH Conductors & Devices | M90: 106542001 | N90: =N50-N70 -> 54122071 | O90: 13874388 | P90: 29956061 | Q90: 3383581 | R90: =R50-R70 -> 4517381 | S90: 688519
A91: 366 | B91: UG Conduit | C91: 24852869.51 | D91: 6371122.132 | E91: 13433114.28 | F91: 1553742.032 | K91: 366 | L91: UG Conduit | M91: 48384999 | N91: =N51-N71 -> 24852869 | O91: 6371122 | P91: 13433114 | Q91: 1553742 | R91: =R51-R71 -> 1857984 | S91: 316168
A92: 367 | B92: UG Conductors & Devices | C92: 33684644.49 | D92: 8635179.869 | E92: 18262138.72 | F92: 2105882.968 | K92: 367 | L92: UG Conductors & Devices | M92: 65973001 | N92: =N52-N72 -> 33684645 | O92: 8635180 | P92: 18262139 | Q92: 2105883 | R92: =R52-R72 -> 2856631 | S92: 428523
B93: Subtotals | C93: =SUM(C86:C92) -> 234913585.5 | D93: =SUM(D86:D92) -> 60220941.87 | E93: =SUM(E86:E92) -> 129306929.7 | F93: =SUM(F86:F92) -> 14686230.97 | L93: Subtotals | M93: 472257001 | N93: =SUM(N86:N92) -> 234913586 | O93: =SUM(O86:O92) -> 60220942 | P93: 129306930 | Q93: 14686231 | R93: =SUM(R86:R92) -> 21172605 | S93: 11956707
A95: 368 | B95: Line Transformers | C95: =C55-C75 -> 67259315 | D95: =D55-D75 -> 17242167 | E95: 33405982 | F95: 4204890 | K95: 368 | L95: Line Transformers | M95: =M55-M75 -> 122968000 | N95: =N55-N75 -> 67259315 | O95: =O55-O75 -> 17242167 | P95: 33405982 | Q95: 4204890 | R95: =R55-R75 -> 0 | S95: 855646
A96: 369 | B96: Services | C96: =C56-C76 -> 54564442.14 | D96: =D56-D76 -> 8134407.873 | E96: 484637.9924 | F96: 632511.9901 | K96: 369 | L96: Services | M96: =M56-M76 -> 63816001 | N96: =N56-N76 -> 54564443 | O96: 8134408 | P96: 484638 | Q96: 632512 | R96: =R56-R76 -> 0 | S96: 0
A97: 370 | B97: Meters | C97: =C57-C77 -> 0 | D97: 0 | E97: 0 | F97: 0 | K97: 370 | L97: Meters | M97: =M57-M77 -> 0 | N97: =N57-N77 -> 0 | O97: 0 | P97: 0 | Q97: 0 | R97: =R57-R77 -> 0 | S97: 0
B98: Subtotals | C98: =SUM(C95:C97) -> 121823757.1 | D98: =SUM(D95:D97) -> 25376574.87 | E98: =SUM(E95:E97) -> 33890619.99 | F98: =SUM(F95:F97) -> 4837401.99 | L98: Subtotals | M98: =M58-M78 -> 186784001 | N98: =SUM(N95:N97) -> 121823758 | O98: =SUM(O95:O97) -> 25376575 | P98: 33890620 | Q98: 4837402 | R98: =SUM(R95:R97) -> 0 | S98: 855646
B100: Totals | C100: =C93+C98 -> 356737342.6 | D100: =D93+D98 -> 85597516.74 | E100: 163197549.7 | F100: 19523632.96 | L100: Totals | M100: =M93+M98 -> 659041002 | N100: =N93+N98 -> 356737344 | O100: =O93+O98 -> 85597517 | P100: 163197550 | Q100: 19523633 | R100: =R93+R98 -> 21172605 | S100: 12812353
B103: Depreciation Expense | L103: Depreciation Expense
A104: Account | K104: Account
C105: Schedule 001 | D105: Schedule 011/012 | E105: Schedule 021/022 | F105: Schedule 031/032 | N105: Schedule 001 | O105: Schedule 011/012 | P105: Schedule 021/022 | Q105: Schedule 031/032 | R105: Schedule 25 | S105: Sch 41-49
A106: 361 | B106: Structures & Improvements | C106: =$I106*($N106/$M106) -> 118725.4807 | D106: =$I106*($O106/$M106) -> 30436.12322 | E106: =$I106*($P106/$M106) -> 65744.26617 | F106: =$I106*($Q106/$M106) -> 7422.030049 | I106: 247000 | K106: 361 | L106: Structures & Improvements | M106: =SUM(N106:S106) -> 246999 | N106: 118725 | O106: 30436 | P106: 65744 | Q106: 7422 | R106: 23162 | S106: 1510 | U106: Knox COS Study - "Assign" (J555 - W698)
A107: 362 | B107: Station Equipment | C107: =$I107*($N107/$M107) -> 851928 | D107: =$I107*($O107/$M107) -> 218395 | E107: =$I107*($P107/$M107) -> 471754 | F107: =$I107*($Q107/$M107) -> 53260 | I107: 1711000 | K107: 362 | L107: Station Equipment | M107: =SUM(N107:S107) -> 1711000 | N107: 851928 | O107: 218395 | P107: 471754 | Q107: 53260 | R107: 104825 | S107: 10838
A108: 363 | B108: Storage Battery Equipment | C108: 63521 | D108: 16284 | E108: 35175 | F108: 3971 | I108: 133000 | K108: 363 | L108: Storage Battery Equipment | M108: =SUM(N108:S108) -> 133000 | N108: 63521 | O108: 16284 | P108: 35175 | Q108: 3971 | R108: 13241 | S108: 808
A109: 364 | B109: Poles, Towers & Fixtures | C109: 2611343.517 | D109: 669426.8762 | E109: 1444745.733 | F109: 163254.9698 | I109: 5407000 | K109: 364 | L109: Poles, Towers & Fixtures | M109: 5407001 | N109: 2611344 | O109: 669427 | P109: 1444746 | Q109: 163255 | R109: 213577 | S109: 304652
A110: 365 | B110: OH Conductors & Devices | C110: 2084782.492 | D110: 534441.8698 | E110: 1153907.719 | F110: 130335.9682 | I110: 4104000 | K110: 365 | L110: OH Conductors & Devices | M110: 4104001 | N110: 2084783 | O110: 534442 | P110: 1153908 | Q110: 130336 | R110: 174010 | S110: 26522
A111: 366 | B111: UG Conduit | C111: 943571.4864 | D111: 241887.8683 | E111: 510005.7224 | F111: 58989.96789 | I111: 1837000 | K111: 366 | L111: UG Conduit | M111: 1837001 | N111: 943572 | O111: 241888 | P111: 510006 | Q111: 58990 | R111: 70541 | S111: 12004
A112: 367 | B112: UG Conductors & Devices | C112: 3597562.489 | D112: 922247.8691 | E112: 1950419.723 | F112: 224910.9681 | I112: 7046000 | K112: 367 | L112: UG Conductors & Devices | M112: 7046001 | N112: 3597563 | O112: 922248 | P112: 1950420 | Q112: 224911 | R112: 305092 | S112: 45767
B113: Subtotals | C113: =SUM(C106:C112) -> 10271434.47 | D113: =SUM(D106:D112) -> 2633119.607 | E113: =SUM(E106:E112) -> 5631752.163 | F113: =SUM(F106:F112) -> 642144.9041 | I113: =SUM(I106:I112) -> 20485000 | L113: Subtotals | M113: 20485003 | N113: =SUM(N106:N112) -> 10271436 | O113: =SUM(O106:O112) -> 2633120 | P113: 5631753 | Q113: 642145 | R113: =SUM(R106:R112) -> 904448 | S113: 402101
A115: 368 | B115: Line Transformers | C115: =$I115*($N115/$M115) -> 1983846 | D115: =$I115*($O115/$M115) -> 508566 | E115: =$I115*($P115/$M115) -> 985325 | F115: =$I115*($Q115/$M115) -> 124025 | I115: 3627000 | K115: 368 | L115: Line Transformers | M115: =SUM(N115:S115) -> 3627000 | N115: 1983846 | O115: 508566 | P115: 985325 | Q115: 124025 | R115: 0 | S115: 25238
A116: 369 | B116: Services | C116: =$I116*($N116/$M116) -> 2426568 | D116: =$I116*($O116/$M116) -> 361750 | E116: =$I116*($P116/$M116) -> 21553 | F116: =$I116*($Q116/$M116) -> 28129 | I116: 2838000 | K116: 369 | L116: Services | M116: =SUM(N116:S116) -> 2838000 | N116: 2426568 | O116: 361750 | P116: 21553 | Q116: 28129 | R116: 0 | S116: 0
A117: 370 | B117: Meters | C117: 0 | D117: 0 | E117: 0 | F117: 0 | I117: 0 | K117: 370 | L117: Meters | M117: 0 | N117: 0 | O117: 0 | P117: 0 | Q117: 0 | R117: 0 | S117: 0
B118: Subtotals | C118: =SUM(C115:C117) -> 4410414 | D118: =SUM(D115:D117) -> 870316 | E118: =SUM(E115:E117) -> 1006878 | F118: =SUM(F115:F117) -> 152154 | I118: =SUM(I115:I117) -> 6465000 | L118: Subtotals | M118: 6465000 | N118: =SUM(N115:N117) -> 4410414 | O118: =SUM(O115:O117) -> 870316 | P118: 1006878 | Q118: 152154 | R118: =SUM(R115:R117) -> 0 | S118: 25238
B120: Totals | C120: =C113+C118 -> 14681848.47 | D120: =D113+D118 -> 3503435.607 | E120: 6638630.163 | F120: 794298.9041 | L120: Totals | M120: =M113+M118 -> 26950003 | N120: =N113+N118 -> 14681850 | O120: =O113+O118 -> 3503436 | P120: 6638631 | Q120: 794299 | R120: =R113+R118 -> 904448 | S120: 427339
A123: Total Distribution Plant Depreciation Rates by Account
G126: Effective | H126: Weighted | I126: Distribution | J126: Term Fac
A127: Account | B127: Account | C127: Plant in | D127: Accumulated | E127: Net | F127: Depreciation | G127: Depreciation | H127: Depreciation | I127: Weighted | J127: Weighted
A128: Number | B128: Description | C128: Service | D128: Depreciation | E128: Plant | F128: Expense | G128: Rate | H128: Rate | I128: Rate | J128: Rate
A129: 360 | B129: Land & Land Rights | C129: 4757000 | D129: 29000 | E129: =C129-D129 -> 4728000 | F129: 5000 | G129: =F129/C129 -> 0.001051082615 | H129: =G129*(E129/$E$140) -> 7.486819367e-06 | I129: =G129*(F129/(SUM($F$129:$F$136))) -> 2.564867289e-07 | K129: Results of Operations (September 30, 2015) | L129: Knox COS Study - "Assign" (colunm Q)
A130: 361 | B130: Structures & Improvements | C130: 14851000 | D130: 4484000 | E130: =C130-D130 -> 10367000 | F130: 247000 | G130: =F130/C130 -> 0.01663187664 | H130: 0.0002597630578 | I130: 0.0002004916315
A131: 362 | B131: Station Equipment | C131: 83107000 | D131: 23183000 | E131: =C131-D131 -> 59924000 | F131: 1711000 | G131: 0.02058791678 | H131: 0.001858644084 | I131: 0.001719176457
A132: 363 | B132: Storage Battery Equipment | C132: 2631000 | D132: 215000 | E132: =C132-D132 -> 2416000 | F132: 133000 | G132: =F132/C132 -> 0.05055112125 | H132: 0.0001839970064 | I132: 0.0003281258724
A133: 364 | B133: Poles, Towers & Fixtures | C133: 233645000 | D133: 54995000 | E133: 178650000 | F133: 5407000 | G133: 0.02314194611 | H133: 0.006228535339 | I133: 0.006106808328
A134: 365 | B134: OH Conductors & Devices | C134: 148163000 | D134: 41621000 | E134: 106542000 | F134: 4104000 | G134: 0.02769922315 | H134: 0.004446020578 | I134: 0.005547955677
A135: 366 | B135: UG Conduit | C135: 67628000 | D135: 19243000 | E135: 48385000 | F135: 1837000 | G135: 0.02716330514 | H135: 0.001980051071 | I135: 0.002435285092
A136: 367 | B136: UG Conductors & Devices | C136: 122166000 | D136: 56193000 | E136: 65973000 | F136: 7046000 | G136: 0.0576756217 | H136: 0.005732466852 | I136: 0.01983320793
A137: 368 | B137: Line Transformers | C137: 168718000 | D137: 45750000 | E137: 122968000 | F137: 3627000 | G137: 0.02149740988 | H137: 0.003982550402 | J137: =G137*(F137/(SUM($F$137:$F$139))) -> 0.01206049584
A138: 369 | B138: Services | C138: 103648000 | D138: 39832000 | E138: 63816000 | F138: 2838000 | G138: 0.02738113615 | H138: 0.002632473925 | J138: =G138*(F138/(SUM($F$137:$F$139))) -> 0.01201974701
A139: 370 | B139: Meters | C139: 0 | D139: 0 | E139: 0 | F139: 0 | G139: 0 | H139: 0 | J139: 0
A140: Totals | C140: =SUM(C129:C139) -> 949314000 | D140: =SUM(D129:D139) -> 285545000 | E140: 663769000 | F140: 26955000 | G140: =F140/C140 -> 0.0283941878 | H140: =G140*(E140/E140) -> 0.0283941878 | I140: =SUM(I129:I139) -> 0.03617130747 | J140: =SUM(J129:J139) -> 0.02408024285
E141: Revenue Conversion Factor (Before FIT) | H141: =CF!E20 -> 0.953323
E142: Grossed-up Depreciation Rate | H142: =H140/H141 -> 0.02978443592
A145: 371 | B145: Install on Customers Premises | C145: 0 | D145: 0 | E145: 0 | F145: 0 | G145: 0
A146: 373 | B146: Street Lighting | C146: 39422000 | D146: 12616000 | E146: =C146-D146 -> 26806000 | F146: 1353000 | G146: =F146/C146 -> 0.03432093755

Sheet CF
A2: Revenue Conversion Factor
A3: Washington - Electric System
A4: Twelve Months Ended December 31, 2016
A6: Line
A7: No. | C7: Description | E7: Factor
A9: 1 | C9: Revenues | E9: 1
C11: Expense:
A12: 2 | C12: Uncollectibles | E12: 0.0061825
A14: 3 | C14: Commission Fees | E14: 0.002
A16: 4 | C16: Washington Excise Tax | E16: 0.0384945
A18: 5 | C18: Total Expense | E18: =SUM(E12:E16) -> 0.046677
A20: 6 | C20: Net Operating Income Before FIT | E20: =E9-E18 -> 0.953323
A22: 7 | C22: Federal Income Tax @ 21% | E22: =ROUND(E20*0.21,6) -> 0.200198
A24: 8 | C24: REVENUE CONVERSION FACTOR | E24: =ROUND(E20-E22,6) -> 0.753125
